bitfinex-derivatives/quotes_SOLF0:USTF0_20251006
["timestamp","ask_amount","ask_price","bid_price","bid_amount"]
[1759779453299,1.93164728,235.8,235.71,12.47948529]
[1759779453300,3.8151,235.77,235.71,12.47948529]
[1759779453507,3.8151,235.77,235.72,7.75]
[1759779453701,3.8151,235.77,235.7,7.75]
[1759779453907,3.8151,235.77,235.7,20.58996626]
[1759779454500,3.8151,235.77,235.71,7.75]
[1759779457906,5.74624728,235.8,235.71,3.8158]
[1759779458202,5.74624728,235.8,235.72,7.8]
[1759779458608,3.8146,235.8,235.73,7.8]
[1759779458810,1.93164728,235.84,235.73,9.73164728]
[1759779459203,3.8141,235.82,235.74,7.8]
[1759779460714,5.74554728,235.84,235.75,7.8]
[1759779460915,1.93164728,235.84,235.75,7.8]
[1759779461329,3.8144,235.81,235.75,7.8]
[1759779462422,5.74604728,235.81,235.75,7.8]
[1759779464627,3.8146,235.8,235.73,7.8]
[1759779465026,3.8147,235.79,235.73,7.8]
[1759779465220,1.93164728,235.78,235.71,7.8]
[1759779465419,1.93164728,235.75,235.71,7.8]
[1759779465922,1.93164728,235.75,235.66,7.8]
[1759779466128,1.93164728,235.75,235.68,7.8]
[1759779466628,3.8155,235.74,235.68,7.8]
[1759779467027,1.93164728,235.75,235.68,7.8]
[1759779467231,1.93164728,235.76,235.69,7.8]
[1759779469631,5.74684728,235.76,235.69,7.8]
[1759779470530,3.8154,235.75,235.69,7.8]
[1759779470731,1.93164728,235.76,235.69,7.8]
[1759779471025,3.8156,235.73,235.69,7.8]
[1759779471229,3.8156,235.73,235.67,7.21]
[1759779473630,3.8159,235.72,235.65,7.21]
[1759779473930,1.93164728,235.73,235.65,7.21]
[1759779475031,3.8154,235.74,235.65,7.21]
[1759779475228,1.93164728,235.75,235.65,7.21]
[1759779475729,3.8159,235.72,235.65,7.21]
[1759779476435,3.8159,235.72,235.66,7.21]
[1759779479039,5.74704728,235.75,235.66,7.21]
[1759779479333,1.93164728,235.75,235.66,7.21]
[1759779479934,3.8155,235.74,235.67,3.8165]
[1759779480135,3.8155,235.74,235.68,7.21]
[1759779481831,1.93164728,235.75,235.68,7.21]
[1759779483433,3.8154,235.74,235.68,7.21]
[1759779483632,1.93164728,235.75,235.68,7.21]
[1759779484542,3.8157,235.73,235.68,7.21]
[1759779484740,3.8157,235.73,235.66,7.21]
[1759779485441,3.8159,235.72,235.66,7.21]
[1759779486142,5.74694728,235.75,235.66,7.21]
[1759779486339,1.93164728,235.78,235.67,3.56327909]
[1759779486545,1.93164728,235.78,235.69,7.21]
[1759779486743,5.74644728,235.78,235.7,3.816]
[1759779486942,5.74644728,235.78,235.71,7.21]
[1759779487143,3.8148,235.78,235.71,7.21]
[1759779487646,3.8151,235.77,235.71,7.21]
[1759779487949,1.93164728,235.79,235.71,7.21]
[1759779488243,1.93164728,235.82,235.71,7.21]
[1759779488543,1.93164728,235.82,235.72,7.21]
[1759779488842,5.74594728,235.82,235.72,7.21]
[1759779489143,1.93164728,235.82,235.72,7.21]
[1759779489336,3.8144,235.81,235.72,7.21]
[1759779489738,3.8144,235.81,235.73,10.77327909]
[1759779489939,3.8144,235.81,235.73,7.21]
[1759779490544,3.8146,235.8,235.73,7.21]
[1759779490845,1.93164728,235.82,235.73,7.21]
[1759779491441,3.8145,235.8,235.73,7.21]
[1759779491648,1.93164728,235.82,235.73,7.21]
[1759779492148,3.8145,235.8,235.73,7.21]
[1759779493545,3.8148,235.78,235.72,3.56327909]
[1759779493944,3.8148,235.78,235.73,7.21]
[1759779494145,3.8148,235.78,235.72,3.56327909]
[1759779494846,3.8148,235.78,235.73,7.21]
[1759779495745,3.8145,235.8,235.72,3.56327909]
[1759779495949,3.8145,235.8,235.73,7.21]
[1759779497644,3.8147,235.79,235.73,7.21]
[1759779499345,3.8149,235.78,235.72,3.56327909]
[1759779499646,3.8149,235.78,235.72,7.91]
[1759779503652,3.8145,235.8,235.72,7.91]
[1759779503952,4.08145726,235.84,235.72,7.91]
[1759779505646,3.8149,235.78,235.72,7.91]
[1759779506349,3.815,235.77,235.71,7.91]
[1759779506954,3.02134774,235.8,235.7,7.91]
[1759779507149,1.06010952,235.8,235.7,7.91]
[1759779507455,3.8148,235.78,235.7,7.91]
[1759779507650,106.76134774,235.8,235.7,7.91]
[1759779508254,3.8153,235.76,235.7,7.91]
[1759779508750,106.76134774,235.8,235.7,7.91]
[1759779509054,3.02134774,235.76,235.68,7.91]
[1759779509350,3.02134774,235.72,235.65,7.91]
[1759779509752,106.76134774,235.72,235.65,7.91]
[1759779509951,3.8164,235.68,235.65,7.91]
[1759779510346,3.02134774,235.68,235.61,7.91]
[1759779512257,6.83794774,235.68,235.61,7.91]
[1759779513058,3.02134774,235.68,235.61,7.91]
[1759779513551,3.8169,235.65,235.57,3.56327909]
[1759779513753,3.8169,235.65,235.58,7.91]
[1759779518164,3.8172,235.64,235.58,7.91]
[1759779518364,3.02134774,235.68,235.58,7.91]
[1759779518565,62.38994774,235.68,235.58,7.91]
[1759779519368,3.02134774,235.64,235.53,7.77]
[1759779519662,103.76,235.63,235.53,7.77]
[1759779520668,3.8179,235.59,235.53,7.77]
[1759779520859,3.02134774,235.64,235.53,7.77]
[1759779521065,3.02134774,235.67,235.53,7.77]
[1759779521362,3.02134774,235.67,235.57,7.77]
[1759779522655,3.02134774,235.67,235.53,3.56327909]
[1759779522961,3.02134774,235.59,235.55,7.77]
[1759779523265,6.83924774,235.59,235.55,7.77]
[1759779523765,6.83924774,235.59,235.45,7.38337909]
[1759779523766,6.83924774,235.59,235.49,12.97360362]
[1759779523965,3.8182,235.57,235.5,7.77]
[1759779526366,3.02134774,235.55,235.5,7.77]
[1759779526868,3.02134774,235.55,235.42,7.77]
[1759779527666,3.8188,235.53,235.42,7.77]
[1759779530368,3.02134774,235.55,235.42,7.77]
[1759779530369,3.8192,235.51,235.42,7.77]
[1759779531164,6.84054774,235.51,235.42,7.77]
[1759779536870,3.8187,235.54,235.42,7.77]
[1759779538476,103.8,235.55,235.42,7.77]
[1759779539473,107.6186,235.55,235.42,7.77]
[1759779541673,3.8189,235.53,235.42,7.77]
[1759779542070,3.02134774,235.52,235.42,7.77]
[1759779542272,3.8195,235.49,235.32,7.27]
[1759779542476,3.8195,235.49,235.34,7.27]
[1759779543073,3.8195,235.49,235.38,7.27]
[1759779543471,3.8199,235.47,235.38,7.27]
[1759779545169,3.02134774,235.48,235.38,7.27]
[1759779546370,3.82,235.46,235.38,7.27]
[1759779548077,3.8204,235.44,235.38,7.27]
[1759779548284,59.4229,235.46,235.32,7.27]
[1759779548473,59.4326,235.42,235.32,7.27]
[1759779548678,62.46174774,235.39,235.26,7.27]
[1759779549386,3.8221,235.33,235.26,7.27]
[1759779550085,3.8217,235.36,235.26,7.27]
[1759779551885,3.02134774,235.39,235.26,7.27]
[1759779552080,3.8219,235.34,235.26,7.27]
[1759779552282,3.02134774,235.35,235.26,7.27]
[1759779553285,3.8216,235.37,235.26,7.27]
[1759779554983,3.8218,235.35,235.26,7.27]
[1759779555187,5.76328181,235.35,235.26,7.27]
[1759779556287,3.8218,235.35,235.26,7.27]
[1759779556475,1.94148181,235.34,235.26,7.27]
[1759779557288,5.76328181,235.35,235.26,7.27]
[1759779557789,1.94148181,235.35,235.26,7.27]
[1759779557985,3.8214,235.38,235.27,7.71]
[1759779558190,1.94148181,235.39,235.27,7.71]
[1759779558985,107.6409,235.4,235.26,1.94148181]
[1759779559190,1.94148181,235.39,235.3,7.71]
[1759779560391,5.76278181,235.39,235.3,7.71]
[1759779561994,3.8214,235.38,235.3,7.71]
[1759779562691,107.6409,235.4,235.3,7.71]
[1759779562892,1.94148181,235.38,235.3,7.71]
[1759779563391,107.6409,235.4,235.3,7.71]
[1759779563689,7.6381,235.52,235.32,1.94148181]
[1759779563889,1.94148181,235.44,235.33,7.71]
[1759779564897,1.94148181,235.41,235.33,7.71]
[1759779566192,1.94148181,235.41,235.34,7.71]
[1759779566991,1.94148181,235.45,235.36,7.71]
[1759779568091,5.76178181,235.45,235.36,7.71]
[1759779568389,1.94148181,235.42,235.36,7.71]
[1759779569598,3.8208,235.41,235.36,7.71]
[1759779569897,3.8208,235.41,235.33,7.71]
[1759779570698,1.94148181,235.39,235.33,7.71]
[1759779573400,5.76268181,235.39,235.33,7.71]
[1759779573800,1.94148181,235.41,235.33,7.71]
[1759779575504,1.94148181,235.4,235.33,7.71]
[1759779576003,3.8208,235.42,235.33,7.71]
[1759779576205,1.94148181,235.41,235.33,7.71]
[1759779576995,3.8209,235.4,235.33,7.71]
[1759779579205,1.94148181,235.38,235.28,3.56327909]
[1759779579404,1.94148181,235.35,235.28,7.91]
[1759779579709,1.94148181,235.4,235.32,7.91]
[1759779580002,1.94148181,235.34,235.27,3.56327909]
[1759779580206,1.94148181,235.34,235.26,7.91]
[1759779580710,5.76338181,235.34,235.26,7.91]
[1759779582111,106.10148181,235.36,235.26,7.91]
[1759779582805,106.10148181,235.36,235.26,11.47327909]
[1759779583405,3.8219,235.35,235.26,11.47327909]
[1759779583804,106.10148181,235.36,235.26,11.47327909]
[1759779584700,3.8219,235.35,235.26,15.29637909]
[1759779586106,3.8219,235.35,235.26,11.47327909]
[1759779586311,1.94148181,235.33,235.26,11.47327909]
[1759779587104,3.8215,235.37,235.27,3.56327909]
[1759779587305,1.94148181,235.36,235.28,7.91]
[1759779587608,1.94148181,235.36,235.28,11.47327909]
[1759779588005,1.94148181,235.38,235.29,7.93]
[1759779588607,3.8217,235.36,235.29,7.93]
[1759779590214,3.8217,235.36,235.29,11.49327909]
[1759779592414,5.76278181,235.38,235.3,7.93]
[1759779593217,5.76278181,235.38,235.3,11.49327909]
[1759779593416,3.8216,235.36,235.3,11.49327909]
[1759779594717,3.8218,235.35,235.3,11.49327909]
[1759779594919,3.8218,235.35,235.3,3.56327909]
[1759779595216,3.8218,235.35,235.31,7.93]
[1759779595421,3.8215,235.37,235.31,7.93]
[1759779595915,3.8215,235.37,235.31,11.49327909]
[1759779596119,3.8215,235.37,235.32,7.93]
[1759779596617,3.8215,235.37,235.31,3.56327909]
[1759779596819,3.8215,235.37,235.32,7.93]
[1759779597122,3.8215,235.37,235.31,3.56327909]
[1759779597420,3.8215,235.37,235.32,7.93]
[1759779597616,3.8215,235.37,235.31,3.56327909]
[1759779597824,3.8215,235.37,235.32,7.93]
[1759779598321,3.8211,235.4,235.32,7.93]
[1759779598516,1.94148181,235.4,235.32,11.49327909]
[1759779598918,1.94148181,235.37,235.31,11.49327909]
[1759779600123,3.8217,235.36,235.31,11.49327909]
[1759779600324,1.94148181,235.37,235.3,3.56327909]
[1759779600524,1.94148181,235.37,235.29,11.49327909]
[1759779600714,3.8218,235.35,235.29,11.49327909]
[1759779601419,1.06196086,235.4,235.3,7.93]
[1759779601622,1.94148181,235.37,235.3,7.93]
[1759779602222,3.8218,235.35,235.3,7.93]
[1759779602722,3.8218,235.35,235.29,3.56327909]
[1759779602923,1.94148181,235.36,235.3,7.93]
[1759779603523,3.8215,235.37,235.3,3.56327909]
[1759779603723,3.8215,235.37,235.31,11.49327909]
[1759779604623,3.8215,235.37,235.32,7.93]
[1759779605029,3.8215,235.37,235.31,3.56327909]
[1759779605522,3.8217,235.36,235.31,3.56327909]
[1759779605722,3.8217,235.36,235.32,7.93]
[1759779605922,3.8217,235.36,235.31,3.56327909]
[1759779606128,3.8217,235.36,235.32,7.93]
[1759779606329,3.8217,235.36,235.31,3.56327909]
[1759779606729,3.8217,235.36,235.32,7.93]
[1759779606926,3.8217,235.36,235.31,3.56327909]
[1759779607121,3.8217,235.36,235.32,7.93]
[1759779607626,3.8217,235.36,235.31,3.56327909]
[1759779607823,3.8218,235.35,235.32,7.93]
[1759779608021,1.94148181,235.35,235.28,11.49327909]
[1759779608223,1.94148181,235.32,235.27,3.56327909]
[1759779608628,1.94148181,235.29,235.25,3.56327909]
[1759779608834,1.94148181,235.29,235.24,7.93]
[1759779609635,3.823,235.27,235.24,7.93]
[1759779609823,1.94148181,235.29,235.22,3.56327909]
[1759779610132,1.94148181,235.29,235.23,7.93]
[1759779610634,5.76438181,235.29,235.23,7.93]
[1759779612626,1.94148181,235.27,235.22,7.93]
[1759779612832,1.94148181,235.27,235.21,7.93]
[1759779613033,1.94148181,235.29,235.22,7.93]
[1759779613429,5.76438181,235.29,235.22,7.93]
[1759779617034,3.8229,235.29,235.22,7.93]
[1759779617436,103.92,235.31,235.22,7.93]
[1759779618238,3.0350146,235.29,235.22,7.93]
[1759779618540,106.9550146,235.31,235.22,7.93]
[1759779619432,3.823,235.28,235.22,7.93]
[1759779620332,3.0350146,235.27,235.18,3.56860956]
[1759779620534,3.0350146,235.27,235.17,7.61]
[1759779620930,3.8238,235.23,235.17,7.61]
[1759779621337,3.824,235.22,235.17,7.61]
[1759779621737,3.824,235.22,235.16,7.61]
[1759779622331,54.22,235.25,235.16,7.61]
[1759779623136,54.22,235.25,235.15,11.17860956]
[1759779623340,3.0350146,235.24,235.15,7.61]
[1759779624440,3.0350146,235.23,235.15,7.61]
[1759779625341,3.8238,235.23,235.15,7.61]
[1759779626543,3.824,235.21,235.15,7.61]
[1759779626842,107.1350146,235.25,235.15,7.61]
[1759779627044,3.8243,235.2,235.12,7.61]
[1759779629033,3.8245,235.19,235.12,7.61]
[1759779629434,26.58,235.22,235.12,7.61]
[1759779629640,3.0350146,235.21,235.12,7.61]
[1759779629840,3.8247,235.18,235.12,7.61]
[1759779631240,62.5219146,235.21,235.08,7.61]
[1759779631740,3.0350146,235.21,235.08,7.61]
[1759779632341,3.8242,235.2,235.07,3.56860956]
[1759779632548,41.6,235.22,235.1,7.61]
[1759779632943,3.8241,235.21,235.11,3.8255]
[1759779633141,41.6,235.22,235.12,7.61]
[1759779633747,3.8246,235.18,235.12,7.61]
[1759779633947,3.0350146,235.21,235.12,7.61]
[1759779635250,59.4907,235.19,235.12,7.61]
[1759779635552,3.0350146,235.17,235.07,7.61]
[1759779636346,3.8253,235.14,235.07,7.61]
[1759779636651,104.12,235.13,235.07,7.61]
[1759779637043,59.5122,235.11,234.98,3.56860956]
[1759779637244,59.5063,235.13,234.97,7.85]
[1759779637451,3.0350146,235.1,234.97,7.85]
[1759779637749,3.8263,235.07,234.97,7.85]
[1759779638151,3.8259,235.1,234.97,7.85]
[1759779638347,104.52,235.09,234.97,7.85]
[1759779639052,104.5,235.08,234.97,7.85]
[1759779639351,108.3261,235.08,234.97,7.85]
[1759779640150,3.8258,235.11,234.97,7.85]
[1759779640352,104.48,235.1,234.97,7.85]
[1759779641360,104.5,235.09,234.97,7.85]
[1759779642060,108.326,235.09,234.99,7.85]
[1759779642755,104.48,235.08,234.99,7.85]
[1759779643358,6.8606146,235.12,235.0,7.85]
[1759779643858,3.8259,235.1,235.0,7.85]
[1759779645663,104.46,235.09,235.0,7.85]
[1759779645859,3.8261,235.08,235.0,7.85]
[1759779646460,3.8265,235.06,235.0,7.85]
[1759779646758,309.52,235.14,235.0,7.85]
[1759779646963,3.0350146,235.13,235.0,7.85]
[1759779647365,413.94,235.14,235.01,7.85]
[1759779647560,309.52,235.14,235.01,62.5698146]
[1759779647867,309.52,235.14,235.08,7.85]
[1759779648065,104.42,235.16,235.08,7.85]
[1759779648260,104.58,235.18,235.08,7.85]
[1759779648466,104.58,235.18,235.05,3.0350146]
[1759779648467,104.58,235.18,235.1,7.59]
[1759779651162,3.8247,235.17,235.1,7.59]
[1759779651761,3.8251,235.15,235.04,7.59]
[1759779652260,104.58,235.18,235.06,7.59]
[1759779652465,3.0350146,235.2,235.06,7.59]
[1759779652466,104.62,235.17,235.06,7.59]
[1759779653470,104.62,235.17,235.06,11.4163]
[1759779653771,104.62,235.17,235.07,7.59]
[1759779654068,104.62,235.17,235.07,11.4161]
[1759779654069,108.4447,235.17,235.07,11.4161]
[1759779654270,3.8247,235.17,235.07,11.4161]
[1759779654569,3.0350146,235.2,235.06,7.59]
[1759779654766,3.0350146,235.25,235.1,7.59]
[1759779655271,35.26,235.24,235.1,7.59]
[1759779655467,3.0350146,235.25,235.1,7.59]
[1759779655664,68.92,235.24,235.1,7.59]
[1759779655966,3.8238,235.23,235.11,7.59]
[1759779656166,68.92,235.24,235.11,7.59]
[1759779656766,3.8242,235.21,235.11,7.59]
[1759779658171,3.8244,235.19,235.11,7.59]
[1759779658771,3.824,235.22,235.11,7.59]
[1759779658972,68.92,235.24,235.11,7.59]
[1759779659467,3.8245,235.18,235.11,7.59]
[1759779659867,3.0350146,235.21,235.05,3.54153843]
[1759779660067,3.8249,235.16,235.06,7.59]
[1759779661169,3.0350146,235.17,235.06,7.59]
[1759779661571,95.24,235.16,235.06,7.59]
[1759779661771,3.8255,235.12,235.06,7.59]
[1759779662069,95.24,235.16,235.06,7.59]
[1759779662275,3.8251,235.15,235.06,7.59]
[1759779662974,3.8247,235.18,235.06,7.59]
[1759779663171,56.4047,235.18,235.06,7.59]
[1759779664375,3.8248,235.17,235.06,7.59]
[1759779665575,3.8248,235.17,235.07,3.8263]
[1759779665875,3.8248,235.17,235.06,7.59]
[1759779666076,3.825,235.16,235.06,7.59]
[1759779667277,3.825,235.16,235.06,11.4163]
[1759779668973,3.8251,235.15,235.06,7.59]
[1759779669170,52.58,235.18,235.06,7.59]
[1759779669374,3.0350146,235.15,235.06,7.59]
[1759779671677,6.8601146,235.15,235.06,7.59]
[1759779672783,3.8253,235.14,235.06,7.59]
[1759779674077,3.8255,235.12,235.06,7.59]
[1759779674283,3.0350146,235.16,235.02,3.54153843]
[1759779674584,104.46,235.15,235.04,11.13153843]
[1759779674789,104.46,235.15,235.05,7.59]
[1759779675384,104.46,235.15,235.06,3.8263]
[1759779675679,3.8245,235.18,235.08,3.826]
[1759779675879,3.0350146,235.16,235.04,3.54153843]
[1759779676085,3.0350146,235.16,235.05,7.59]
[1759779676687,3.8254,235.13,235.05,7.59]
[1759779678686,1.94489644,235.14,235.06,7.32]
[1759779679987,3.8255,235.13,235.06,7.32]
[1759779681982,3.8256,235.12,235.06,7.32]
[1759779682790,1.94489644,235.14,235.06,7.32]
[1759779684585,3.8253,235.13,235.06,7.32]
[1759779685694,104.44,235.17,235.04,10.88922572]
[1759779685695,3.8259,235.1,235.04,10.88922572]
[1759779685893,3.8259,235.1,235.04,7.32]
[1759779687093,1.94489644,235.11,235.04,7.32]
[1759779688092,1.94489644,235.11,235.04,10.88922572]
[1759779689191,1.94489644,235.11,235.04,7.32]
[1759779689594,5.77069644,235.11,235.04,7.32]
[1759779691093,59.4836,235.22,235.04,3.56922572]
[1759779691294,59.4836,235.22,235.06,10.88922572]
[1759779691295,86.52311074,235.21,235.06,10.88922572]
[1759779691491,1.94489644,235.14,235.07,7.32]
[1759779691690,1.94489644,235.14,235.07,11.1462]
[1759779691896,1.94489644,235.14,235.08,7.32]
[1759779692395,1.94489644,235.14,235.08,11.1461]
[1759779692995,1.94489644,235.14,235.08,7.32]
[1759779694286,1.94489644,235.14,235.06,3.56922572]
[1759779694489,1.94489644,235.11,235.07,7.32]
[1759779694695,1.94489644,235.11,235.05,3.56922572]
[1759779694894,1.94489644,235.11,235.06,7.32]
[1759779695295,1.94489644,235.11,235.05,3.56922572]
[1759779695495,1.94489644,235.11,235.06,7.32]
[1759779696598,5.77069644,235.11,235.06,7.32]
[1759779698098,5.77069644,235.11,235.05,7.8]
[1759779699097,3.8259,235.1,235.04,7.8]
[1759779699904,1.94489644,235.05,234.95,7.8]
[1759779700403,5.77159644,235.05,234.95,7.8]
[1759779700594,3.12568603,235.04,234.95,7.8]
[1759779700995,1.94489644,235.05,234.95,7.8]
[1759779701204,1.94489644,235.02,234.95,7.8]
[1759779701406,5.07058247,235.02,234.95,7.8]
[1759779701602,3.12568603,235.01,234.95,7.8]
[1759779701798,1.94489644,235.02,234.95,7.8]
[1759779702199,3.8274,235.01,234.95,7.8]
[1759779702395,3.12568603,235.0,234.92,7.8]
[1759779702801,5.07058247,234.99,234.92,7.8]
[1759779703002,3.12568603,234.98,234.92,7.8]
[1759779703196,3.12568603,234.98,234.89,7.8]
[1759779703606,3.12568603,234.98,234.9,3.829]
[1759779703806,3.12568603,234.98,234.91,7.8]
[1759779704309,3.12568603,234.99,234.91,7.8]
[1759779704509,5.07058247,234.98,234.91,7.8]
[1759779704810,1.94489644,234.95,234.8,7.8]
[1759779705103,5.07058247,234.95,234.84,7.8]
[1759779705309,5.07058247,234.95,234.86,7.8]
[1759779705503,1.94489644,234.92,234.76,59.5995]
[1759779705702,1.94489644,234.88,234.76,7.8]
[1759779705906,1.94489644,234.88,234.77,7.8]
[1759779706309,3.12568603,234.88,234.77,7.8]
[1759779706510,1.94489644,234.89,234.78,3.831]
[1759779706711,1.94489644,234.89,234.79,7.8]
[1759779706909,3.12568603,234.91,234.8,7.8]
[1759779707101,3.12568603,234.95,234.83,7.8]
[1759779707411,3.12568603,234.95,234.83,9.74489644]
[1759779707909,1.94489644,234.96,234.86,7.8]
[1759779708407,5.07058247,234.96,234.86,7.8]
[1759779708603,3.12568603,234.95,234.86,7.8]
[1759779708803,3.12568603,234.95,234.86,9.74489644]
[1759779709110,1.94489644,234.99,234.88,7.37]
[1759779709312,5.20611707,234.99,234.88,7.37]
[1759779709810,5.20611707,234.99,234.9,7.37]
[1759779710010,3.26122063,234.98,234.9,7.37]
[1759779710207,1.94489644,234.99,234.9,7.37]
[1759779710405,1.94489644,235.02,234.92,7.37]
[1759779710903,1.94489644,235.02,234.91,3.8289]
[1759779710904,1.94489644,234.96,234.86,1.94489644]
[1759779711113,1.94489644,234.94,234.87,7.37]
[1759779713813,1.94489644,234.96,234.87,7.37]
[1759779714010,1.94489644,234.97,234.87,7.37]
[1759779714205,1.94489644,234.97,234.88,3.8293]
[1759779714412,1.94489644,234.97,234.89,7.37]
[1759779714807,1.94489644,234.94,234.84,3.83]
[1759779715012,1.94489644,234.94,234.85,7.37]
[1759779715511,1.94489644,234.91,234.85,7.37]
[1759779716111,3.8289,234.91,234.85,7.37]
[1759779716308,1.94489644,234.9,234.85,7.37]
[1759779716814,1.94489644,234.9,234.8,3.8306]
[1759779717010,1.94489644,234.9,234.81,7.37]
[1759779717517,1.94489644,234.9,234.82,3.8304]
[1759779717818,1.94489644,234.9,234.81,7.37]
[1759779718114,5.77399644,234.9,234.81,7.37]
[1759779718517,1.94489644,234.87,234.81,7.37]
[1759779719010,3.2528594,234.87,234.81,7.37]
[1759779719219,1.94489644,234.89,234.81,7.37]
[1759779719821,3.25156845,234.9,234.81,3.8305]
[1759779720121,1.94489644,234.91,234.82,7.37]
[1759779720909,3.25224728,234.93,234.83,3.8302]
[1759779721115,3.25224728,234.93,234.84,9.31489644]
[1759779721319,1.94489644,234.96,234.86,7.37]
[1759779722121,1.94489644,234.96,234.9,7.37]
[1759779722313,3.25408853,234.97,234.9,7.37]
[1759779722513,1.94489644,234.98,234.9,7.37]
[1759779722723,1.94489644,234.95,234.9,7.37]
[1759779724722,5.19946843,234.95,234.9,7.37]
[1759779725721,5.19946843,234.95,234.86,3.8296]
[1759779725922,5.19946843,234.95,234.87,7.37]
[1759779726122,1.94489644,234.92,234.83,3.8301]
[1759779726327,1.94489644,234.92,234.84,7.37]
[1759779727221,5.77359644,234.92,234.84,7.37]
[1759779727424,3.25457199,234.91,234.84,7.37]
[1759779729126,3.8291,234.9,234.84,7.37]
[1759779729430,1.94489644,234.88,234.84,7.37]
[1759779730623,3.25361639,234.89,234.81,7.37]
[1759779730824,1.94489644,234.94,234.83,7.37]
[1759779731029,1.94489644,234.94,234.86,7.37]
[1759779731327,1.94489644,234.91,234.86,7.37]
[1759779731528,3.25313728,234.94,234.81,7.37]
[1759779731728,1.94489644,234.88,234.81,7.37]
[1759779733227,5.19803372,234.88,234.81,7.37]
[1759779733428,3.25313728,234.87,234.81,7.37]
[1759779733619,3.25313728,234.86,234.79,3.8307]
[1759779733824,1.94489644,234.88,234.8,7.37]
[1759779734224,7.08050733,234.93,234.81,3.8305]
[1759779734420,1.94489644,234.87,234.78,7.37]
[1759779734926,1.94489644,234.87,234.81,7.37]
[1759779737030,3.04652635,234.88,234.81,7.37]
[1759779737225,6.29833368,234.88,234.81,7.37]
[1759779737421,3.25180733,234.87,234.81,7.37]
[1759779737625,3.25180733,234.86,234.81,7.37]
[1759779737823,3.25180733,234.85,234.81,7.37]
[1759779738028,3.25180733,234.84,234.77,7.37]
[1759779738229,3.04652635,234.88,234.77,7.37]
[1759779738731,3.04652635,234.88,234.8,7.89]
[1759779739635,6.30048099,234.88,234.8,7.89]
[1759779739936,3.25395464,234.87,234.8,7.89]
[1759779740135,3.25395464,234.86,234.8,7.89]
[1759779740431,3.25395464,234.85,234.71,7.89]
[1759779740636,3.25395464,234.84,234.71,7.89]
[1759779740937,3.25395464,234.83,234.75,7.89]
[1759779741130,3.04652635,234.88,234.75,7.89]
[1759779741335,3.25673611,234.87,234.75,7.89]
[1759779741532,3.25673611,234.86,234.77,7.89]
[1759779741733,3.25673611,234.85,234.77,7.89]
[1759779742037,3.25673611,234.84,234.77,7.89]
[1759779742236,3.25673611,234.83,234.77,7.89]
[1759779742436,3.25673611,234.82,234.74,7.89]
[1759779742637,3.25673611,234.81,234.74,7.89]
[1759779742839,3.25673611,234.8,234.74,7.89]
[1759779743041,6.87642635,234.86,234.74,7.89]
[1759779743339,7.08667114,234.85,234.74,7.89]
[1759779743538,3.25667114,234.84,234.74,7.89]
[1759779743741,3.25667114,234.83,234.74,7.89]
[1759779743929,3.25667114,234.82,234.74,7.89]
[1759779744236,3.25667114,234.81,234.74,7.89]
[1759779744435,3.25667114,234.8,234.74,7.89]
[1759779744637,3.25667114,234.79,234.74,7.89]
[1759779744834,3.83,234.85,234.74,7.89]